[Event "Late-Titled-Tuesday-Blitz-October-03-2023"]
[Site "Chess.com"]
[Date "2023.10.03"]
[Round "3"]
[White "YouShallNotPass001"]
[Black "DefiantChair"]
[Result "1-0"]
[WhiteElo "2401"]
[BlackElo "2567"]
[TimeControl "180+1"]
[EndTime "14:27:12 PDT"]
[Termination "YouShallNotPass001 won by resignation"]

1. Nf3 {[%clk 0:03:00.9]} 1... d5 {[%clk 0:02:58.4]} 2. e3 {[%clk 0:03:01.8]}
2... Nf6 {[%clk 0:02:57.3]} 3. Be2 {[%clk 0:03:02.7]} 3... c5 {[%clk 0:02:57]}
4. O-O {[%clk 0:03:03.6]} 4... Nc6 {[%clk 0:02:57]} 5. d4 {[%clk 0:03:04]} 5...
cxd4 {[%clk 0:02:57.2]} 6. exd4 {[%clk 0:03:04.9]} 6... Bg4 {[%clk 0:02:56.6]}
7. c3 {[%clk 0:03:05.8]} 7... e6 {[%clk 0:02:56.9]} 8. Nbd2 {[%clk 0:03:05]}
8... Bd6 {[%clk 0:02:55.9]} 9. Re1 {[%clk 0:03:05.4]} 9... O-O {[%clk
0:02:55.7]} 10. h3 {[%clk 0:03:05.4]} 10... Bh5 {[%clk 0:02:55.3]} 11. a4 {[%clk
0:03:01]} 11... a6 {[%clk 0:02:52.3]} 12. b4 {[%clk 0:03:00]} 12... Bg6 {[%clk
0:02:49]} 13. Nb3 {[%clk 0:02:56]} 13... e5 {[%clk 0:02:41.9]} 14. a5 {[%clk
0:02:50.8]} 14... e4 {[%clk 0:02:40.6]} 15. Nfd2 {[%clk 0:02:48.6]} 15... Re8
{[%clk 0:02:32]} 16. Nf1 {[%clk 0:02:48.4]} 16... h6 {[%clk 0:02:29.8]} 17. Ra2
{[%clk 0:02:43.3]} 17... Bc7 {[%clk 0:02:28.5]} 18. Nc5 {[%clk 0:02:42.7]} 18...
Rb8 {[%clk 0:02:28.2]} 19. Be3 {[%clk 0:02:25.7]} 19... Nh7 {[%clk 0:02:19.3]}
20. Qd2 {[%clk 0:02:25.3]} 20... f5 {[%clk 0:02:14.1]} 21. Bf4 {[%clk
0:02:23.3]} 21... Bf7 {[%clk 0:02:05.3]} 22. Ng3 {[%clk 0:02:19]} 22... Ne7
{[%clk 0:01:56]} 23. b5 {[%clk 0:01:40.2]} 23... Bxf4 {[%clk 0:01:24]} 24. Qxf4
{[%clk 0:01:41.1]} 24... g5 {[%clk 0:01:23.9]} 25. Qc1 {[%clk 0:01:39.1]} 25...
f4 {[%clk 0:01:20.7]} 26. Nf1 {[%clk 0:01:37.4]} 26... axb5 {[%clk 0:01:18.8]}
27. Bxb5 {[%clk 0:01:35.8]} 27... Rf8 {[%clk 0:01:18.2]} 28. Nd7 {[%clk
0:01:34.9]} 28... Rc8 {[%clk 0:01:03.2]} 29. Nxf8 {[%clk 0:01:31.5]} 29... Qxf8
{[%clk 0:01:04.1]} 30. a6 {[%clk 0:01:30.5]} 30... bxa6 {[%clk 0:01:02.8]} 31.
Rxa6 {[%clk 0:01:31.4]} 31... Nf5 {[%clk 0:00:59.4]} 32. Qa1 {[%clk 0:01:19.5]}
32... f3 {[%clk 0:00:33.1]} 33. Bd7 {[%clk 0:01:12.1]} 33... fxg2 {[%clk
0:00:29.2]} 34. Nh2 {[%clk 0:00:52.7]} 34... Ne7 {[%clk 0:00:16.8]} 35. Bxc8
{[%clk 0:00:50.9]} 35... Nxc8 {[%clk 0:00:17.7]} 36. Ra8 {[%clk 0:00:48.8]}
36... Be6 {[%clk 0:00:17.1]} 37. Qa6 {[%clk 0:00:48.9]} 37... Bxh3 {[%clk
0:00:14.8]} 38. Qg6+ {[%clk 0:00:48]} 38... Kh8 {[%clk 0:00:14.5]} 39. Rb1
{[%clk 0:00:41.3]} 39... e3 {[%clk 0:00:13.1]} 40. fxe3 {[%clk 0:00:35.6]} 40...
Bf5 {[%clk 0:00:13.3]} 41. Qc6 {[%clk 0:00:33.9]} 41... Qe7 {[%clk 0:00:05.1]}
42. Rxc8+ {[%clk 0:00:32.4]} 42... Nf8 {[%clk 0:00:05.5]} 43. Rxf8+ {[%clk
0:00:29]} 43... Qxf8 {[%clk 0:00:05.7]} 44. Re1 {[%clk 0:00:26.3]} 44... Be4
{[%clk 0:00:05.1]} 45. Ra1 {[%clk 0:00:19.7]} 45... Kg7 {[%clk 0:00:03.4]} 46.
Ra7+ {[%clk 0:00:19.3]} 1-0

[Event "Late-Titled-Tuesday-Blitz-October-03-2023"]
[Site "Chess.com"]
[Date "2023.10.03"]
[Round "3"]
[White "APOKALIPSA13"]
[Black "IamSchrodingersCat"]
[Result "0-1"]
[WhiteElo "2173"]
[BlackElo "2514"]
[TimeControl "180+1"]
[EndTime "14:27:18 PDT"]
[Termination "IamSchrodingersCat won by checkmate"]

1. e4 {[%clk 0:02:58.7]} 1... c5 {[%clk 0:02:57.4]} 2. Nf3 {[%clk 0:02:58.3]}
2... d6 {[%clk 0:02:56.8]} 3. d4 {[%clk 0:02:58.7]} 3... cxd4 {[%clk 0:02:57.7]}
4. Nxd4 {[%clk 0:02:59.2]} 4... Nf6 {[%clk 0:02:58.2]} 5. Nc3 {[%clk 0:02:59.8]}
5... g6 {[%clk 0:02:58.8]} 6. Bd3 {[%clk 0:02:57.4]} 6... Bg7 {[%clk 0:02:58.2]}
7. f3 {[%clk 0:02:54.2]} 7... Nc6 {[%clk 0:02:57.4]} 8. Nb3 {[%clk 0:02:51.7]}
8... O-O {[%clk 0:02:55.7]} 9. Be3 {[%clk 0:02:51.8]} 9... Ne5 {[%clk
0:02:49.5]} 10. Be2 {[%clk 0:02:50.3]} 10... Bd7 {[%clk 0:02:45.2]} 11. Qd2
{[%clk 0:02:50.4]} 11... Rc8 {[%clk 0:02:41.2]} 12. h4 {[%clk 0:02:50.4]} 12...
h5 {[%clk 0:02:38.3]} 13. Bh6 {[%clk 0:02:42.9]} 13... Bxh6 {[%clk 0:02:33.1]}
14. Qxh6 {[%clk 0:02:42.2]} 14... a5 {[%clk 0:02:28.4]} 15. Nd4 {[%clk
0:02:35.3]} 15... Rxc3 {[%clk 0:02:21.2]} 16. bxc3 {[%clk 0:02:34.7]} 16... Qc7
{[%clk 0:02:21.7]} 17. c4 {[%clk 0:02:17.4]} 17... Nxc4 {[%clk 0:02:13.2]} 18.
g4 {[%clk 0:02:09]} 18... Ne5 {[%clk 0:02:01.6]} 19. Rd1 {[%clk 0:02:01.3]}
19... Qc3+ {[%clk 0:01:55.3]} 20. Kf1 {[%clk 0:01:59]} 20... Rc8 {[%clk
0:01:39.4]} 21. gxh5 {[%clk 0:01:35.6]} 21... Nxh5 {[%clk 0:01:40.3]} 22. Rg1
{[%clk 0:01:35.6]} 22... Nf6 {[%clk 0:01:16.4]} 23. h5 {[%clk 0:01:28.6]} 23...
Bh3+ {[%clk 0:01:01]} 24. Kf2 {[%clk 0:01:25.3]} 24... Neg4+ {[%clk 0:00:56.3]}
25. Rxg4 {[%clk 0:01:16.2]} 25... Bxg4 {[%clk 0:00:37.5]} 26. Rd3 {[%clk
0:01:08.4]} 26... Qc5 {[%clk 0:00:33.9]} 27. hxg6 {[%clk 0:00:58.5]} 27... Bd7
{[%clk 0:00:22.6]} 28. gxf7+ {[%clk 0:00:45.2]} 28... Kxf7 {[%clk 0:00:23.5]}
29. Ke1 {[%clk 0:00:36.5]} 29... Rg8 {[%clk 0:00:18.3]} 30. Qh2 {[%clk
0:00:31.5]} 30... Qb4+ {[%clk 0:00:16.7]} 31. Kf2 {[%clk 0:00:23]} 31... e5
{[%clk 0:00:14.5]} 32. Nf5 {[%clk 0:00:18.3]} 32... Qc5+ {[%clk 0:00:11.9]} 33.
Ne3 {[%clk 0:00:17.6]} 33... Be6 {[%clk 0:00:08]} 34. Ke1 {[%clk 0:00:16.5]}
34... b5 {[%clk 0:00:07.5]} 35. Kd2 {[%clk 0:00:16.4]} 35... b4 {[%clk
0:00:07.7]} 36. c3 {[%clk 0:00:16.4]} 36... Rc8 {[%clk 0:00:06.9]} 37. Bd1
{[%clk 0:00:15.4]} 37... bxc3+ {[%clk 0:00:06.8]} 38. Ke1 {[%clk 0:00:15.6]}
38... Rg8 {[%clk 0:00:05.1]} 39. Bc2 {[%clk 0:00:15.5]} 39... Qb4 {[%clk
0:00:04.8]} 40. Ke2 {[%clk 0:00:15.5]} 40... Qb2 {[%clk 0:00:04.3]} 41. Kf2
{[%clk 0:00:15.5]} 41... Qc1 {[%clk 0:00:04.5]} 42. Ke2 {[%clk 0:00:15.5]} 42...
Qb2 {[%clk 0:00:04.5]} 43. Kf2 {[%clk 0:00:15.8]} 43... Ke7 {[%clk 0:00:04.8]}
44. Rd1 {[%clk 0:00:13.1]} 44... Rf8 {[%clk 0:00:03.9]} 45. Rb1 {[%clk
0:00:13.1]} 45... Qxa2 {[%clk 0:00:03.9]} 46. Ke2 {[%clk 0:00:13.2]} 46... Bd7
{[%clk 0:00:04.1]} 47. Nf5+ {[%clk 0:00:11.9]} 47... Bxf5 {[%clk 0:00:03.7]} 48.
Ke3 {[%clk 0:00:12]} 48... Be6 {[%clk 0:00:03.3]} 49. Rb7+ {[%clk 0:00:11.4]}
49... Bd7 {[%clk 0:00:03.9]} 50. Bb3 {[%clk 0:00:09.7]} 50... Qxh2 {[%clk
0:00:03.8]} 51. Bd5 {[%clk 0:00:09.3]} 51... Ng4+ {[%clk 0:00:03.5]} 52. Kd3
{[%clk 0:00:09.1]} 52... Qd2+ {[%clk 0:00:03.8]} 53. Kc4 {[%clk 0:00:09.4]}
53... Rc8+ {[%clk 0:00:04.3]} 54. Kb3 {[%clk 0:00:08.7]} 54... Qb2# {[%clk
0:00:04.4]} 0-1

[Event "Late-Titled-Tuesday-Blitz-October-03-2023"]
[Site "Chess.com"]
[Date "2023.10.03"]
[Round "3"]
[White "davigator"]
[Black "koncheto"]
[Result "0-1"]
[WhiteElo "2307"]
[BlackElo "2537"]
[TimeControl "180+1"]
[EndTime "14:27:21 PDT"]
[Termination "koncheto won by resignation"]

1. e4 {[%clk 0:02:57.4]} 1... c5 {[%clk 0:02:59.7]} 2. Nf3 {[%clk 0:02:56.5]}
2... d6 {[%clk 0:03:00.1]} 3. d4 {[%clk 0:02:57]} 3... cxd4 {[%clk 0:03:01]} 4.
Nxd4 {[%clk 0:02:57.2]} 4... Nf6 {[%clk 0:03:01.7]} 5. Nc3 {[%clk 0:02:57.2]}
5... Nc6 {[%clk 0:03:02.3]} 6. Bg5 {[%clk 0:02:57.2]} 6... e6 {[%clk 0:03:02.5]}
7. f3 {[%clk 0:02:57.3]} 7... Be7 {[%clk 0:03:01.6]} 8. h4 {[%clk 0:02:57.1]}
8... h6 {[%clk 0:03:01.1]} 9. Be3 {[%clk 0:02:56.2]} 9... h5 {[%clk 0:03:01.5]}
10. Qd2 {[%clk 0:02:55.4]} 10... a6 {[%clk 0:03:01]} 11. O-O-O {[%clk
0:02:55.4]} 11... Qc7 {[%clk 0:03:01.5]} 12. Bg5 {[%clk 0:02:53.5]} 12... b5
{[%clk 0:03:01.1]} 13. Nxc6 {[%clk 0:02:52.3]} 13... Qxc6 {[%clk 0:03:01.4]} 14.
Ne2 {[%clk 0:02:53]} 14... Bb7 {[%clk 0:02:59.9]} 15. Nd4 {[%clk 0:02:52.6]}
15... Qc5 {[%clk 0:02:59.8]} 16. Kb1 {[%clk 0:02:51.2]} 16... Rc8 {[%clk
0:02:57.3]} 17. Nb3 {[%clk 0:02:51.1]} 17... Qc7 {[%clk 0:02:52.8]} 18. Na5
{[%clk 0:02:49.2]} 18... Ba8 {[%clk 0:02:51.7]} 19. Bd3 {[%clk 0:02:43.1]} 19...
d5 {[%clk 0:02:51.1]} 20. e5 {[%clk 0:02:42]} 20... Nd7 {[%clk 0:02:33.3]} 21.
Bxe7 {[%clk 0:02:41.7]} 21... Kxe7 {[%clk 0:02:34.2]} 22. Qb4+ {[%clk
0:02:36.3]} 22... Qc5 {[%clk 0:02:17.4]} 23. Qe1 {[%clk 0:02:33.5]} 23... d4
{[%clk 0:01:56.4]} 24. f4 {[%clk 0:02:31.9]} 24... Bd5 {[%clk 0:01:56.4]} 25.
Rh3 {[%clk 0:02:27.7]} 25... Nb6 {[%clk 0:01:46.4]} 26. Nb3 {[%clk 0:02:24.7]}
26... Bxb3 {[%clk 0:01:45.2]} 27. cxb3 {[%clk 0:02:24]} 27... Nd5 {[%clk
0:01:45.7]} 28. Rf3 {[%clk 0:02:22]} 28... g6 {[%clk 0:01:41.3]} 29. Qd2 {[%clk
0:02:06.9]} 29... Rhd8 {[%clk 0:01:37.8]} 30. Rf2 {[%clk 0:01:57.1]} 30... Rc7
{[%clk 0:01:17]} 31. g3 {[%clk 0:01:55.7]} 31... Ne3 {[%clk 0:00:41.4]} 32. Re1
{[%clk 0:01:53.7]} 32... Rdc8 {[%clk 0:00:38.8]} 33. a3 {[%clk 0:01:51.2]} 33...
Rd7 {[%clk 0:00:32.5]} 34. Be4 {[%clk 0:01:45.4]} 34... Ng4 {[%clk 0:00:25.2]}
35. Rf3 {[%clk 0:01:41.1]} 35... Ne3 {[%clk 0:00:24.9]} 36. Rf2 {[%clk
0:01:40.8]} 36... Qc7 {[%clk 0:00:20.5]} 37. Rfe2 {[%clk 0:01:39.1]} 37... a5
{[%clk 0:00:20.2]} 38. Qd3 {[%clk 0:01:34.8]} 38... a4 {[%clk 0:00:18.4]} 39.
Rd2 {[%clk 0:01:26.6]} 39... axb3 {[%clk 0:00:10.4]} 40. Qxb3 {[%clk 0:01:26.1]}
40... Qc4 {[%clk 0:00:08.7]} 41. Qd3 {[%clk 0:01:20]} 41... Rb8 {[%clk
0:00:06.5]} 42. Rc1 {[%clk 0:01:17.3]} 42... Qa4 {[%clk 0:00:04.2]} 43. Bc6
{[%clk 0:01:10]} 43... Rdd8 {[%clk 0:00:03.5]} 44. Rc5 {[%clk 0:01:07.8]} 44...
Nc4 {[%clk 0:00:03.8]} 45. Rc2 {[%clk 0:01:06.2]} 45... Qa7 {[%clk 0:00:03.7]}
46. Rxb5 {[%clk 0:01:02.6]} 46... Rxb5 {[%clk 0:00:02.7]} 47. Bxb5 {[%clk
0:01:02.4]} 47... Ne3 {[%clk 0:00:03.6]} 48. Rd2 {[%clk 0:00:59.6]} 48... Kf8
{[%clk 0:00:03.9]} 49. a4 {[%clk 0:00:59.9]} 49... Qc5 {[%clk 0:00:02.3]} 50.
Qe4 {[%clk 0:00:59.3]} 50... Qb4 {[%clk 0:00:02]} 51. Qd3 {[%clk 0:00:58.2]}
51... Qc5 {[%clk 0:00:02.1]} 52. Ka2 {[%clk 0:00:57.5]} 52... Qd5+ {[%clk
0:00:02]} 53. b3 {[%clk 0:00:56.9]} 53... Qc5 {[%clk 0:00:02.4]} 54. Kb2 {[%clk
0:00:56]} 54... Qd5 {[%clk 0:00:02.3]} 55. Bc4 {[%clk 0:00:55]} 55... Qc5 {[%clk
0:00:02.1]} 56. Re2 {[%clk 0:00:50.1]} 56... Rb8 {[%clk 0:00:01.8]} 57. Rd2
{[%clk 0:00:48.8]} 57... Nxc4+ {[%clk 0:00:02]} 58. Ka2 {[%clk 0:00:46]} 58...
Nxd2 {[%clk 0:00:02.6]} 59. Qxd2 {[%clk 0:00:46.5]} 59... Qc3 {[%clk 0:00:02.5]}
60. Qb2 {[%clk 0:00:45.2]} 60... Qxb2+ {[%clk 0:00:02.1]} 61. Kxb2 {[%clk
0:00:46]} 61... d3 {[%clk 0:00:02.9]} 62. Kc3 {[%clk 0:00:46.1]} 62... d2 {[%clk
0:00:03.8]} 63. Kxd2 {[%clk 0:00:46.6]} 63... Rxb3 {[%clk 0:00:04.4]} 64. Kc2
{[%clk 0:00:47.3]} 64... Ra3 {[%clk 0:00:05.3]} 65. Kb2 {[%clk 0:00:47.4]} 65...
Rxa4 {[%clk 0:00:05.9]} 66. Kb3 {[%clk 0:00:47.7]} 66... Re4 {[%clk 0:00:05.9]}
67. Kc3 {[%clk 0:00:48.6]} 67... Re3+ {[%clk 0:00:06.8]} 68. Kd2 {[%clk
0:00:48.9]} 68... Rxg3 {[%clk 0:00:07.7]} 69. Ke2 {[%clk 0:00:49.3]} 69... Rg4
{[%clk 0:00:08.6]} 70. Kf3 {[%clk 0:00:49.4]} 70... Rxh4 {[%clk 0:00:09.2]} 71.
Kg3 {[%clk 0:00:50.3]} 71... Rg4+ {[%clk 0:00:10.1]} 72. Kf3 {[%clk 0:00:50.7]}
72... Ke7 {[%clk 0:00:11]} 73. Kf2 {[%clk 0:00:51.1]} 73... f6 {[%clk
0:00:11.9]} 74. Kf3 {[%clk 0:00:51.6]} 74... f5 {[%clk 0:00:12.8]} 75. Ke3
{[%clk 0:00:51.2]} 75... h4 {[%clk 0:00:13.7]} 76. Kf3 {[%clk 0:00:51.4]} 76...
h3 {[%clk 0:00:14.6]} 77. Kf2 {[%clk 0:00:51.7]} 77... h2 {[%clk 0:00:15.5]} 0-1

[Event "Late-Titled-Tuesday-Blitz-October-03-2023"]
[Site "Chess.com"]
[Date "2023.10.03"]
[Round "3"]
[White "DucksParadise"]
[Black "TigrVShlyape"]
[Result "0-1"]
[WhiteElo "2657"]
[BlackElo "2955"]
[TimeControl "180+1"]
[EndTime "14:27:22 PDT"]
[Termination "TigrVShlyape won by resignation"]

1. d4 {[%clk 0:03:00.9]} 1... g6 {[%clk 0:02:59.4]} 2. e4 {[%clk 0:02:56.7]}
2... Bg7 {[%clk 0:03:00]} 3. Nc3 {[%clk 0:02:54.3]} 3... d6 {[%clk 0:02:59.3]}
4. Be3 {[%clk 0:02:49.6]} 4... a6 {[%clk 0:02:56.4]} 5. Qd2 {[%clk 0:02:47.5]}
5... b5 {[%clk 0:02:56]} 6. Nf3 {[%clk 0:02:44.4]} 6... Bb7 {[%clk 0:02:53.7]}
7. Bd3 {[%clk 0:02:37.4]} 7... e6 {[%clk 0:02:52.5]} 8. Ne2 {[%clk 0:02:33.7]}
8... Nd7 {[%clk 0:02:50]} 9. Ng3 {[%clk 0:02:30]} 9... c5 {[%clk 0:02:45]} 10.
c3 {[%clk 0:02:30]} 10... cxd4 {[%clk 0:02:37.5]} 11. cxd4 {[%clk 0:02:29.9]}
11... Ngf6 {[%clk 0:02:37.6]} 12. h3 {[%clk 0:02:25.6]} 12... O-O {[%clk
0:02:37.1]} 13. O-O {[%clk 0:02:25.6]} 13... Qe7 {[%clk 0:02:23.2]} 14. Rac1
{[%clk 0:02:20.2]} 14... Rfc8 {[%clk 0:02:22.4]} 15. Rxc8+ {[%clk 0:02:20]}
15... Rxc8 {[%clk 0:02:22.5]} 16. Rc1 {[%clk 0:02:20.6]} 16... Qd8 {[%clk
0:02:22.4]} 17. Rxc8 {[%clk 0:02:11.4]} 17... Qxc8 {[%clk 0:02:21.9]} 18. Qa5
{[%clk 0:02:05.8]} 18... Nb8 {[%clk 0:02:05.3]} 19. Qb6 {[%clk 0:01:57.5]} 19...
Bf8 {[%clk 0:02:02.1]} 20. Qa5 {[%clk 0:01:29.4]} 20... Nc6 {[%clk 0:02:00.5]}
21. Qd2 {[%clk 0:01:29.3]} 21... Qc7 {[%clk 0:01:51.4]} 22. Qc3 {[%clk
0:01:25.1]} 22... Qa5 {[%clk 0:01:50.3]} 23. Qxa5 {[%clk 0:01:21.9]} 23... Nxa5
{[%clk 0:01:50.3]} 24. Nd2 {[%clk 0:01:22.1]} 24... d5 {[%clk 0:01:41.6]} 25. e5
{[%clk 0:01:22.1]} 25... Nd7 {[%clk 0:01:41.6]} 26. b3 {[%clk 0:01:19.9]} 26...
Nc6 {[%clk 0:01:40.6]} 27. Kf1 {[%clk 0:01:16]} 27... Nb4 {[%clk 0:01:27.2]} 28.
Bb1 {[%clk 0:01:16]} 28... a5 {[%clk 0:01:27.3]} 29. Ne2 {[%clk 0:01:10.3]}
29... Ba6 {[%clk 0:01:26.1]} 30. Nc3 {[%clk 0:01:10.2]} 30... Nb8 {[%clk
0:01:18.5]} 31. Ke1 {[%clk 0:01:01.5]} 31... Be7 {[%clk 0:01:16.2]} 32. Kd1
{[%clk 0:00:57.4]} 32... f5 {[%clk 0:01:15]} 33. Nf3 {[%clk 0:00:45]} 33... N4c6
{[%clk 0:01:12]} 34. Bd3 {[%clk 0:00:33]} 34... b4 {[%clk 0:01:11.9]} 35. Bxa6
{[%clk 0:00:32.8]} 35... Nxa6 {[%clk 0:01:12]} 36. Ne2 {[%clk 0:00:30.6]} 36...
Nc7 {[%clk 0:01:10.2]} 37. Bg5 {[%clk 0:00:28.6]} 37... Bf8 {[%clk 0:01:09.8]}
38. Bc1 {[%clk 0:00:25.9]} 38... h6 {[%clk 0:01:09.3]} 39. h4 {[%clk 0:00:25.7]}
39... Kf7 {[%clk 0:01:08.9]} 40. g3 {[%clk 0:00:26.2]} 40... Nb5 {[%clk
0:01:08.2]} 41. Kc2 {[%clk 0:00:25.4]} 41... Kg7 {[%clk 0:01:01]} 42. Kd3 {[%clk
0:00:25.8]} 42... Be7 {[%clk 0:00:59.8]} 43. Bb2 {[%clk 0:00:26.1]} 43... Bd8
{[%clk 0:00:56.8]} 44. Bc1 {[%clk 0:00:25.9]} 44... Bb6 {[%clk 0:00:56]} 45. Nf4
{[%clk 0:00:23.5]} 45... Kf7 {[%clk 0:00:54.1]} 46. Ne2 {[%clk 0:00:23.4]} 46...
Kg7 {[%clk 0:00:52.6]} 47. Be3 {[%clk 0:00:22.2]} 47... Nc7 {[%clk 0:00:50.1]}
48. Bd2 {[%clk 0:00:22.4]} 48... Nb5 {[%clk 0:00:42.9]} 49. Be3 {[%clk
0:00:22.4]} 49... Nd8 {[%clk 0:00:42.2]} 50. Nf4 {[%clk 0:00:20.9]} 50... Nc7
{[%clk 0:00:38.1]} 51. Ne2 {[%clk 0:00:20.8]} 51... Nf7 {[%clk 0:00:37.2]} 52.
Bd2 {[%clk 0:00:20.6]} 52... Nb5 {[%clk 0:00:33.8]} 53. Be3 {[%clk 0:00:20.7]}
53... Bd8 {[%clk 0:00:32.2]} 54. Bd2 {[%clk 0:00:21.1]} 54... g5 {[%clk
0:00:31.5]} 55. hxg5 {[%clk 0:00:21.1]} 55... hxg5 {[%clk 0:00:30.8]} 56. Ne1
{[%clk 0:00:19.6]} 56... Kg6 {[%clk 0:00:27.7]} 57. f3 {[%clk 0:00:19.2]} 57...
Be7 {[%clk 0:00:27.6]} 58. Nc2 {[%clk 0:00:18.9]} 58... Nd8 {[%clk 0:00:26.1]}
59. g4 {[%clk 0:00:18.9]} 59... f4 {[%clk 0:00:22.2]} 60. Ng1 {[%clk 0:00:18.9]}
60... Nc6 {[%clk 0:00:21.9]} 61. Ne2 {[%clk 0:00:19.2]} 61... Bd8 {[%clk
0:00:20.8]} 62. Ng1 {[%clk 0:00:19.6]} 62... Bc7 {[%clk 0:00:21.3]} 63. Ne2
{[%clk 0:00:20.2]} 63... Bxe5 {[%clk 0:00:20.9]} 64. Ng1 {[%clk 0:00:19.3]}
64... Bf6 {[%clk 0:00:20.6]} 0-1

[Event "Late-Titled-Tuesday-Blitz-October-03-2023"]
[Site "Chess.com"]
[Date "2023.10.03"]
[Round "3"]
[White "santosalberto1987"]
[Black "alexrustemov"]
[Result "1/2-1/2"]
[WhiteElo "2513"]
[BlackElo "2821"]
[TimeControl "180+1"]
[EndTime "14:27:23 PDT"]
[Termination "Game drawn by repetition"]

1. e4 {[%clk 0:03:00.9]} 1... e6 {[%clk 0:02:59.3]} 2. d4 {[%clk 0:03:00.2]}
2... d5 {[%clk 0:02:59.2]} 3. Nc3 {[%clk 0:03:00]} 3... Bb4 {[%clk 0:02:57.9]}
4. e5 {[%clk 0:03:00.2]} 4... c5 {[%clk 0:02:57.8]} 5. a3 {[%clk 0:03:00.4]}
5... Bxc3+ {[%clk 0:02:58.1]} 6. bxc3 {[%clk 0:03:01.3]} 6... Ne7 {[%clk
0:02:58.6]} 7. Nf3 {[%clk 0:03:00.6]} 7... h6 {[%clk 0:02:56.4]} 8. a4 {[%clk
0:02:59.6]} 8... b6 {[%clk 0:02:55.6]} 9. a5 {[%clk 0:02:59.4]} 9... Ba6 {[%clk
0:02:54.6]} 10. axb6 {[%clk 0:02:58.9]} 10... axb6 {[%clk 0:02:53.5]} 11. Bb5+
{[%clk 0:02:51.3]} 11... Kf8 {[%clk 0:02:47.3]} 12. Be3 {[%clk 0:02:44.7]} 12...
Qc7 {[%clk 0:02:45.6]} 13. Bxa6 {[%clk 0:02:33.1]} 13... Rxa6 {[%clk 0:02:44.6]}
14. Rxa6 {[%clk 0:02:31.4]} 14... Nxa6 {[%clk 0:02:45.1]} 15. O-O {[%clk
0:02:29.5]} 15... Nb8 {[%clk 0:02:45.1]} 16. Qb1 {[%clk 0:02:26]} 16... Nd7
{[%clk 0:02:43.7]} 17. Qb5 {[%clk 0:02:24.1]} 17... g6 {[%clk 0:02:41.1]} 18.
Ra1 {[%clk 0:02:20.4]} 18... Kg7 {[%clk 0:02:40.4]} 19. g4 {[%clk 0:02:09.2]}
19... Rc8 {[%clk 0:02:36]} 20. Kg2 {[%clk 0:02:05.8]} 20... Nc6 {[%clk 0:02:32]}
21. Ne1 {[%clk 0:01:55.8]} 21... cxd4 {[%clk 0:02:28.3]} 22. cxd4 {[%clk
0:01:55.7]} 22... Na5 {[%clk 0:02:28.3]} 23. Nf3 {[%clk 0:01:38.4]} 23... Qc6
{[%clk 0:02:27.8]} 24. Qxc6 {[%clk 0:01:30.4]} 24... Rxc6 {[%clk 0:02:28.2]} 25.
Ra2 {[%clk 0:01:30.4]} 25... Rc7 {[%clk 0:02:16.9]} 26. Nd2 {[%clk 0:01:26.7]}
26... Nc6 {[%clk 0:02:04.1]} 27. Rb2 {[%clk 0:01:19.5]} 27... Na5 {[%clk
0:01:49.5]} 28. Kf1 {[%clk 0:01:14.3]} 28... Nc4 {[%clk 0:01:44.7]} 29. Nxc4
{[%clk 0:01:14.2]} 29... Rxc4 {[%clk 0:01:45.4]} 30. Ke2 {[%clk 0:01:12.7]}
30... Ra4 {[%clk 0:01:44.7]} 31. Rb3 {[%clk 0:00:59.3]} 31... Rc4 {[%clk
0:01:36.2]} 32. Kd3 {[%clk 0:00:55.6]} 32... Rc7 {[%clk 0:01:34.1]} 33. Rc3
{[%clk 0:00:52.8]} 33... Ra7 {[%clk 0:01:30.3]} 34. Rc8 {[%clk 0:00:51.1]} 34...
b5 {[%clk 0:01:28.2]} 35. Bd2 {[%clk 0:00:28.2]} 35... Ra3+ {[%clk 0:01:22.7]}
36. Rc3 {[%clk 0:00:24.1]} 36... Ra7 {[%clk 0:01:12]} 37. Rc8 {[%clk 0:00:24.3]}
37... Nb6 {[%clk 0:01:10]} 38. Rb8 {[%clk 0:00:23.4]} 38... Nc4 {[%clk
0:01:09.8]} 39. Rxb5 {[%clk 0:00:23.2]} 39... Ra3+ {[%clk 0:01:08.6]} 40. Rb3
{[%clk 0:00:22.7]} 40... Ra1 {[%clk 0:01:08.7]} 41. Bb4 {[%clk 0:00:20.6]} 41...
Rg1 {[%clk 0:00:51.3]} 42. h3 {[%clk 0:00:19.3]} 42... Rh1 {[%clk 0:00:51]} 43.
Be7 {[%clk 0:00:16.5]} 43... Rxh3+ {[%clk 0:00:50.3]} 44. Ke2 {[%clk 0:00:17]}
44... Rxb3 {[%clk 0:00:35.2]} 45. cxb3 {[%clk 0:00:17.9]} 45... Na5 {[%clk
0:00:35]} 46. b4 {[%clk 0:00:17.4]} 46... Nc6 {[%clk 0:00:35.2]} 47. Bc5 {[%clk
0:00:17.2]} 47... h5 {[%clk 0:00:32.2]} 48. gxh5 {[%clk 0:00:17.3]} 48... gxh5
{[%clk 0:00:32.2]} 49. b5 {[%clk 0:00:18.2]} 49... Na5 {[%clk 0:00:32.5]} 50.
Kf3 {[%clk 0:00:17.8]} 50... Kg6 {[%clk 0:00:32.4]} 51. Kf4 {[%clk 0:00:17.6]}
51... Kh6 {[%clk 0:00:26.2]} 52. b6 {[%clk 0:00:17.4]} 52... Nb7 {[%clk
0:00:26.2]} 53. Be7 {[%clk 0:00:17.3]} 53... Kg6 {[%clk 0:00:26.7]} 54. Bf6
{[%clk 0:00:17.1]} 54... Na5 {[%clk 0:00:26.1]} 55. Kg3 {[%clk 0:00:17]} 55...
Kf5 {[%clk 0:00:23.4]} 56. Kf3 {[%clk 0:00:17.1]} 56... Nb7 {[%clk 0:00:19.9]}
57. Be7 {[%clk 0:00:17.2]} 57... Na5 {[%clk 0:00:20]} 58. Bf6 {[%clk 0:00:17.3]}
58... Nc6 {[%clk 0:00:16.3]} 59. Ke3 {[%clk 0:00:15.6]} 59... Na5 {[%clk
0:00:13.4]} 60. Kf3 {[%clk 0:00:15.6]} 1/2-1/2